bitfinex/quotes_BTCUSD_20250308
["timestamp","ask_amount","ask_price","bid_price","bid_amount"]
[1741416687089,0.01912121,86560.0,86559.0,0.08780889]
[1741416687542,0.01812121,86560.0,86559.0,0.08780889]
[1741416687925,0.01812121,86560.0,86559.0,0.08880889]
[1741416688330,0.01812121,86560.0,86559.0,0.08780889]
[1741416688855,0.01812121,86560.0,86559.0,0.09080889]
[1741416689189,0.01812121,86560.0,86559.0,0.08780889]
[1741416689448,0.01812121,86560.0,86559.0,0.08980889]
[1741416689953,0.02723455,86560.0,86559.0,0.09280889]
[1741416690504,0.00911334,86560.0,86559.0,0.08125689]
[1741416690705,0.011552,86560.0,86559.0,0.08125689]
[1741416690908,0.02066534,86560.0,86559.0,0.07925689]
[1741416691144,0.02066534,86560.0,86559.0,0.00755689]
[1741416692157,0.02066534,86560.0,86559.0,0.00355689]
[1741416692361,0.05661098,86560.0,86559.0,0.00355689]
[1741416692578,0.05661098,86560.0,86559.0,0.00155689]
[1741416693346,0.1088554,86561.0,86559.0,0.00155689]
[1741416693553,0.01914645,86560.0,86559.0,0.00155689]
[1741416694224,0.01914645,86560.0,86559.0,0.00055689]
[1741416694599,0.01914645,86560.0,86559.0,0.00155689]
[1741416695019,0.01914645,86560.0,86559.0,0.00055689]
[1741416695446,0.01914645,86560.0,86559.0,0.00155689]
[1741416696440,0.05511526,86560.0,86559.0,0.00155689]
[1741416699988,0.15867233,86560.0,86559.0,0.00155689]
[1741416700711,0.12927305,86560.0,86559.0,0.12605689]
[1741416700884,0.12927305,86560.0,86559.0,0.36982009]
[1741416701097,0.1216786,86560.0,86559.0,0.36866489]
[1741416702791,0.01812153,86560.0,86559.0,0.36866489]
[1741416703104,0.01812153,86560.0,86559.0,0.36766489]
[1741416703272,0.02568358,86560.0,86559.0,0.36766489]
[1741416703473,0.01812153,86560.0,86559.0,0.36766489]
[1741416703701,0.01812153,86560.0,86559.0,0.36866489]
[1741416703926,0.01812153,86560.0,86559.0,0.37166489]
[1741416704361,0.01812153,86560.0,86559.0,0.37066489]
[1741416704538,0.01812153,86560.0,86559.0,0.37466489]
[1741416704748,0.01812153,86560.0,86559.0,0.13205689]
[1741416705341,0.02571514,86560.0,86559.0,0.13205689]
[1741416706811,0.03726714,86560.0,86559.0,0.13205689]
[1741416708051,0.02571514,86560.0,86559.0,0.13205689]
[1741416708259,0.02571514,86560.0,86559.0,0.14360889]
[1741416708661,0.01812153,86560.0,86559.0,0.14476404]
[1741416710219,0.01812153,86560.0,86559.0,0.14360889]
[1741416710597,0.01812153,86560.0,86559.0,0.14476405]
[1741416711141,0.01812153,86560.0,86559.0,0.1451084]
[1741416711344,0.01812153,86560.0,86559.0,0.14476405]
[1741416713812,0.01812153,86560.0,86559.0,0.14522518]
[1741416714173,0.0001698,86585.0,86580.0,0.231]
[1741416714312,0.0001698,86585.0,86581.0,0.1224]
[1741416714513,0.04242672,86584.0,86582.0,0.230994]
[1741416714715,0.0001698,86585.0,86582.0,0.242543]
[1741416714921,0.0001698,86585.0,86584.0,0.230989]
[1741416715124,0.0001698,86585.0,86584.0,0.011549]
[1741416715324,0.00657013,86585.0,86581.0,0.1224]
[1741416715666,0.24910613,86585.0,86581.0,0.1224]
[1741416715821,0.00657013,86585.0,86581.0,0.1224]
[1741416716042,0.00657013,86585.0,86581.0,0.36609791]
[1741416716236,0.00657013,86585.0,86582.0,0.011549]
[1741416717032,0.02468572,86585.0,86582.0,0.011549]
[1741416717587,0.02468572,86585.0,86583.0,0.242541]
[1741416717952,0.02468572,86585.0,86584.0,0.011549]
[1741416718232,0.01828539,86585.0,86584.0,0.01270386]
[1741416719468,0.01828539,86585.0,86584.0,0.01370386]
[1741416719853,0.01828539,86585.0,86584.0,0.01270386]
[1741416720059,0.01828539,86585.0,86584.0,0.01470386]
[1741416720900,0.01828539,86585.0,86584.0,0.01770386]
[1741416722560,0.01828539,86585.0,86584.0,0.00615486]
[1741416722864,0.01828539,86585.0,86584.0,0.01770386]
[1741416723063,0.01828539,86585.0,86584.0,0.005]
[1741416723293,0.02468572,86585.0,86584.0,0.005]
[1741416723893,0.02468572,86585.0,86584.0,0.016549]
[1741416724837,0.01828539,86585.0,86584.0,0.016549]
[1741416727017,0.01502136,86585.0,86584.0,0.016549]
[1741416727830,0.02506515,86589.0,86585.0,0.242535]
[1741416728063,0.10365549,86590.0,86585.0,0.242535]
[1741416728611,0.011548,86592.0,86585.0,0.242535]
[1741416728821,0.011548,86592.0,86586.0,0.0011548]
[1741416729017,0.01166389,86592.0,86586.0,0.0011548]
[1741416729287,0.242518,86591.0,86586.0,0.0011548]
[1741416729467,0.011548,86590.0,86585.0,0.012549]
[1741416729639,0.011548,86590.0,86585.0,0.01370381]
[1741416730175,0.011548,86591.0,86585.0,0.24468881]
[1741416730389,0.011548,86591.0,86586.0,0.011549]
[1741416730390,0.01811495,86589.0,86586.0,0.011549]
[1741416731552,0.00650515,86588.0,86586.0,0.011549]
[1741416731786,0.00650515,86588.0,86585.0,0.011549]
[1741416732057,0.00650515,86588.0,86585.0,0.242534]
[1741416732623,0.00650515,86588.0,86586.0,0.002]
[1741416732843,0.00650515,86588.0,86586.0,0.001]
[1741416733042,0.00650515,86588.0,86586.0,0.012549]
[1741416733259,0.00650515,86588.0,86587.0,0.24253]
[1741416733680,0.01811495,86589.0,86588.0,0.011548]
[1741416734007,0.0246201,86589.0,86588.0,0.011548]
[1741416736112,0.0246201,86589.0,86588.0,0.012548]
[1741416736608,0.0246201,86589.0,86588.0,0.001]
[1741416737443,0.0246201,86589.0,86588.0,0.002]
[1741416740438,0.0247898,86589.0,86588.0,0.002]
[1741416742537,0.06085125,86589.0,86588.0,0.002]
[1741416743491,0.0363378,86589.0,86588.0,0.002]
[1741416743704,0.07240937,86589.0,86588.0,0.002]
[1741416745268,0.06086137,86589.0,86588.0,0.002]
[1741416747712,0.0247898,86589.0,86584.0,0.03396938]
[1741416747898,0.06090223,86589.0,86584.0,0.0351242]
[1741416748101,0.03611243,86588.0,86584.0,0.0351242]
[1741416748323,0.03611243,86588.0,86584.0,0.26495838]
[1741416748545,0.00650515,86587.0,86584.0,0.26495838]
[1741416748927,0.01828465,86589.0,86584.0,0.27750738]
[1741416749125,0.0426421,86588.0,86584.0,0.04651838]
[1741416749348,0.03613695,86587.0,86584.0,0.04651838]
[1741416749549,0.03613695,86587.0,86584.0,0.012549]
[1741416749745,0.00650515,86586.0,86584.0,0.012549]
[1741416749955,0.01828465,86589.0,86584.0,0.013549]
[1741416750266,0.0426477,86588.0,86584.0,0.013549]
[1741416750439,0.03614255,86587.0,86584.0,0.242538]
[1741416750730,0.03614255,86587.0,86584.0,0.244538]
[1741416750938,0.0426477,86586.0,86584.0,0.245538]
[1741416751075,0.00650515,86586.0,86584.0,0.245538]
[1741416751289,0.01828465,86589.0,86584.0,0.243538]
[1741416751489,0.04265966,86588.0,86584.0,0.244538]
[1741416751734,0.03615451,86587.0,86584.0,0.244538]
[1741416752111,0.00650515,86586.0,86584.0,0.242538]
[1741416752311,0.01828465,86589.0,86584.0,0.245538]
[1741416752512,0.04266907,86588.0,86584.0,0.245538]
[1741416752715,0.03616392,86587.0,86584.0,0.244538]
[1741416752921,0.00649194,86586.0,86584.0,0.246538]
[1741416753125,0.03616392,86585.0,86584.0,0.246538]
[1741416753326,0.03616392,86585.0,86584.0,0.2448774]
[1741416753668,0.04265586,86585.0,86584.0,0.2448774]
[1741416754031,0.04265586,86585.0,86584.0,0.2428774]
[1741416754222,0.04265586,86585.0,86584.0,0.2448774]
[1741416754427,0.03616392,86585.0,86584.0,0.2458774]
[1741416754648,0.03616392,86588.0,86586.0,0.242532]
[1741416754848,0.03615991,86587.0,86586.0,0.242532]
[1741416755027,0.03615991,86587.0,86586.0,0.322532]
[1741416755028,0.00649194,86587.0,86586.0,0.322532]
[1741416755231,0.01828465,86589.0,86588.0,0.011548]
[1741416755576,0.0001697,86589.0,86588.0,0.60900293]
[1741416755801,0.0001697,86589.0,86588.0,0.60784825]
[1741416757131,0.0001697,86589.0,86588.0,0.61484825]
[1741416757715,0.0001697,86589.0,86588.0,0.58984825]
[1741416758119,0.01828034,86589.0,86588.0,0.59684825]
[1741416759491,0.01828034,86589.0,86588.0,0.62184825]
[1741416759869,0.01828034,86589.0,86588.0,0.61484825]
[1741416760617,0.01828034,86589.0,86588.0,0.62184825]
[1741416760844,2.3e-07,86592.0,86591.0,0.07608885]
[1741416761016,2.3e-07,86592.0,86591.0,0.20444336]
[1741416761216,2.3e-07,86592.0,86591.0,0.20490449]
[1741416762352,2.3e-07,86592.0,86591.0,0.21190449]
[1741416763070,2.3e-07,86592.0,86591.0,0.21890449]
[1741416763820,2.3e-07,86592.0,86591.0,0.21190449]
[1741416764017,0.0001698,86621.0,86597.0,0.40924185]
[1741416764281,0.0001698,86621.0,86597.0,0.55744185]
[1741416765399,0.0001698,86621.0,86597.0,0.56444185]
[1741416765882,0.01810716,86607.0,86597.0,0.56444185]
[1741416766318,0.01810716,86607.0,86597.0,0.57144185]
[1741416766431,0.01810716,86607.0,86597.0,1.42714125]
[1741416766900,0.01810716,86607.0,86597.0,1.45017636]
[1741416770841,0.01810716,86607.0,86597.0,1.53461636]
[1741416772257,0.011544,86625.0,86618.0,0.011544]
[1741416772496,0.242426,86625.0,86619.0,0.00115434]
[1741416772723,0.01810794,86622.0,86619.0,0.01269834]
[1741416772896,0.00566491,86624.0,86619.0,0.011544]
[1741416773052,0.011544,86625.0,86619.0,0.01269835]
[1741416773257,0.00566491,86623.0,86619.0,0.01269835]
[1741416773573,0.011544,86625.0,86620.0,0.011544]
[1741416773782,0.00566491,86624.0,86620.0,0.242436]
[1741416773956,0.011543,86626.0,86620.0,0.242436]
[1741416774159,0.00566491,86625.0,86620.0,0.242436]
[1741416775160,0.00566491,86625.0,86620.0,0.246436]
[1741416775360,0.00566491,86625.0,86620.0,0.015544]
[1741416775761,0.00566491,86625.0,86620.0,0.249436]
[1741416775998,0.01810687,86624.0,86620.0,0.249436]
[1741416776630,0.01810687,86624.0,86621.0,0.011544]
[1741416777126,0.01810687,86624.0,86622.0,0.242432]
[1741416777424,0.00568327,86623.0,86622.0,0.242432]
[1741416777991,0.01810687,86624.0,86623.0,0.011544]
[1741416778174,0.02379014,86624.0,86623.0,0.011544]
[1741416779592,0.01810687,86624.0,86623.0,0.014544]
[1741416780341,0.01810687,86624.0,86623.0,0.02069834]
[1741416780570,0.01810687,86624.0,86623.0,0.10277132]
[1741416780773,0.01810687,86624.0,86623.0,0.10239834]
[1741416781989,0.0001697,86625.0,86624.0,0.242426]
[1741416783357,0.0001697,86625.0,86624.0,0.249426]
[1741416784198,0.0001697,86625.0,86624.0,0.35902634]
[1741416786779,0.0001697,86625.0,86624.0,0.35502634]
[1741416787002,0.0001697,86625.0,86624.0,0.35902634]
[1741416787447,7e-07,86625.0,86624.0,0.8050054]
[1741416787650,7e-07,86625.0,86624.0,1.39954625]
[1741416788093,7e-07,86625.0,86624.0,1.40154625]
[1741416788710,7e-07,86625.0,86624.0,1.40554625]
[1741416788951,7e-07,86625.0,86624.0,1.40154625]
[1741416789157,7e-07,86625.0,86624.0,1.40854625]
[1741416789367,7e-07,86625.0,86624.0,1.40354625]
[1741416789769,7e-07,86625.0,86624.0,1.41054625]
[1741416791930,7e-07,86625.0,86624.0,1.25126625]
[1741416792131,7e-07,86625.0,86624.0,1.3710054]
[1741416792339,7e-07,86625.0,86624.0,1.41054625]
[1741416792545,7e-07,86625.0,86624.0,1.40354625]
[1741416792765,7e-07,86625.0,86624.0,1.37854625]
[1741416792943,7e-07,86625.0,86624.0,1.37154625]
[1741416793147,7e-07,86625.0,86624.0,1.37854625]
[1741416793366,7e-07,86625.0,86624.0,1.38554625]
[1741416793897,7e-07,86625.0,86624.0,1.36062625]
[1741416794532,7e-07,86625.0,86624.0,1.3460854]
[1741416794733,7e-07,86625.0,86624.0,0.5781254]
[1741416795954,7e-07,86625.0,86624.0,0.5711254]
[1741416796400,7e-07,86625.0,86624.0,0.5691254]
[1741416796622,7e-07,86625.0,86624.0,0.5761254]
[1741416798144,0.01810351,86625.0,86624.0,0.5761254]
[1741416802717,0.01810351,86625.0,86624.0,0.5691254]
[1741416803020,0.01810351,86625.0,86624.0,0.5754648]
[1741416803235,0.01810351,86625.0,86624.0,0.5704648]
[1741416803452,0.01810351,86625.0,86624.0,0.6447648]
[1741416803658,0.01810351,86625.0,86624.0,0.6567648]
[1741416803833,0.01810351,86625.0,86624.0,0.6517648]
[1741416804212,0.01810351,86625.0,86624.0,0.6587648]
[1741416804414,0.01810351,86625.0,86624.0,0.6517648]
[1741416804618,0.01810351,86625.0,86624.0,0.6447648]
[1741416804833,0.01810351,86625.0,86624.0,0.6517648]
[1741416805248,0.01810351,86625.0,86624.0,0.6986648]
[1741416806004,0.01810351,86625.0,86624.0,0.7056648]
[1741416806452,0.1039634,86635.0,86624.0,0.7056648]
[1741416806453,0.1039634,86635.0,86624.0,0.74520565]
[1741416806655,0.10407946,86635.0,86634.0,0.242398]
[1741416806771,0.10407946,86635.0,86634.0,0.351878]
[1741416808838,0.00011606,86635.0,86634.0,0.351878]
[1741416809019,0.00011606,86635.0,86634.0,0.355878]
[1741416809400,0.00011606,86635.0,86634.0,0.361878]
[1741416810578,0.1752502,86659.0,86653.0,0.242345]
[1741416810782,0.011539,86659.0,86653.0,0.242345]
[1741416810927,0.00588889,86658.0,86653.0,0.242345]
[1741416811548,0.00588889,86658.0,86657.0,0.011539]
[1741416811727,0.02022537,86659.0,86657.0,0.011539]
[1741416812112,0.0001697,86665.0,86664.0,0.011538]
[1741416812244,0.00028572,86665.0,86664.0,0.011538]
[1741416812450,0.00617524,86665.0,86660.0,0.230786]
[1741416812862,0.00617524,86665.0,86662.0,0.24232]
[1741416813413,0.00617524,86665.0,86664.0,0.001]
[1741416813854,0.242324,86661.0,86653.0,0.01154]
[1741416814042,0.242324,86661.0,86654.0,0.242342]
[1741416814298,0.01182372,86665.0,86662.0,0.001]
[1741416814499,0.00028572,86665.0,86662.0,0.012539]
[1741416814649,0.00028572,86665.0,86664.0,0.011538]
[1741416814850,0.00028572,86665.0,86662.0,0.012539]
[1741416814851,0.011538,86663.0,86662.0,0.001]
[1741416815260,0.00028572,86665.0,86662.0,0.001]
[1741416815758,0.011538,86664.0,86662.0,0.001]
[1741416815958,0.00028572,86665.0,86662.0,0.001]
[1741416816371,0.00028572,86665.0,86661.0,0.011539]
[1741416816564,0.00028572,86665.0,86664.0,0.001]
[1741416816771,0.01182372,86665.0,86664.0,0.001]
[1741416816967,0.01182372,86665.0,86659.0,0.242327]
[1741416817172,0.011539,86662.0,86653.0,0.0128792]
[1741416817349,0.230792,86658.0,86655.0,0.00115386]
[1741416817570,0.011539,86659.0,86653.0,0.0118792]
[1741416818393,0.011538,86664.0,86657.0,0.011539]
[1741416818711,0.011539,86661.0,86655.0,0.01154]
[1741416819531,0.01154,86655.0,86653.0,0.0003392]
[1741416819744,0.01154,86654.0,86653.0,0.0003392]
[1741416819941,0.01154,86655.0,86653.0,0.0033392]
[1741416820335,0.01154,86655.0,86653.0,0.0003392]
[1741416820744,0.01810031,86655.0,86654.0,0.01154]
[1741416822024,0.01810031,86655.0,86653.0,0.0043392]
[1741416822157,0.01810031,86655.0,86653.0,0.2496842]
[1741416822356,0.00591981,86654.0,86653.0,0.2466842]
[1741416822575,0.01810031,86655.0,86654.0,0.01154]
[1741416822780,0.01810031,86655.0,86654.0,0.01454]
[1741416822983,0.01810031,86655.0,86654.0,0.01154]
[1741416823181,0.01810031,86655.0,86654.0,0.01554]
[1741416824880,0.02402012,86655.0,86654.0,0.01554]
[1741416825281,0.01810031,86655.0,86654.0,0.01554]
[1741416825784,0.01810031,86655.0,86654.0,0.01854]
[1741416827303,0.01810031,86655.0,86654.0,0.10129392]
[1741416828626,0.01810031,86655.0,86654.0,0.01554]
[1741416828826,0.230777,86664.0,86656.0,0.011539]
[1741416828985,0.011538,86664.0,86658.0,0.011539]
[1741416829192,0.22033044,86665.0,86658.0,0.011539]
[1741416829423,0.0003396,86669.0,86659.0,0.011539]
[1741416829849,0.230765,86668.0,86659.0,0.011539]
[1741416830048,0.230765,86668.0,86661.0,0.011539]
[1741416830347,0.01809923,86667.0,86661.0,0.011539]
[1741416832485,0.011538,86665.0,86659.0,0.001]
[1741416832639,0.011538,86664.0,86659.0,0.001]
[1741416832860,0.011538,86664.0,86661.0,0.002]
[1741416833232,0.011539,86662.0,86661.0,0.003]
[1741416833457,0.011539,86662.0,86661.0,0.002]
[1741416833658,0.242322,86662.0,86654.0,0.01154]
[1741416833853,0.242322,86662.0,86659.0,0.003]
[1741416834922,0.242322,86662.0,86659.0,0.005]
[1741416835229,0.230797,86657.0,86654.0,0.00011602]
[1741416835556,0.01154,86655.0,86654.0,0.00011602]
[1741416836158,0.011539,86658.0,86654.0,0.00011602]
[1741416836359,0.01810052,86655.0,86654.0,0.00011602]
[1741416836719,0.01810052,86655.0,86654.0,0.00211602]
[1741416836931,0.0240504,86655.0,86654.0,0.00611602]
[1741416838095,0.0240504,86655.0,86654.0,0.00411602]
[1741416838274,0.0240504,86655.0,86654.0,0.00011602]
[1741416838480,0.0240504,86655.0,86654.0,0.00211602]
[1741416838675,0.0240504,86655.0,86654.0,0.00411602]
[1741416838880,0.07170774,86655.0,86654.0,0.00411602]
[1741416839100,0.07170774,86655.0,86654.0,0.00711602]
[1741416839716,0.07170774,86655.0,86654.0,0.00311602]
[1741416839920,0.07170774,86655.0,86654.0,0.00011602]
[1741416841753,0.06016774,86655.0,86654.0,0.00011602]
[1741416842195,0.07170774,86655.0,86654.0,0.00011602]
[1741416842742,0.07170774,86655.0,86654.0,0.00045522]
[1741416844384,0.00821291,86656.0,86654.0,0.00045522]
[1741416844586,0.120779,86657.0,86654.0,0.00045522]
[1741416844792,0.01154,86655.0,86654.0,0.00045522]
[1741416844904,0.0476309,86655.0,86654.0,0.00045522]
[1741416847024,0.1230309,86655.0,86654.0,0.00045522]
[1741416847862,0.14113273,86655.0,86654.0,0.00045522]
[1741416848051,0.06573273,86655.0,86654.0,0.00045522]
[1741416851583,0.07460715,86655.0,86654.0,0.00045522]
[1741416865822,0.06573273,86655.0,86654.0,0.00045522]
[1741416868502,0.05419273,86655.0,86654.0,0.07905522]
[1741416870084,0.0360909,86655.0,86654.0,0.13714913]
[1741416870294,0.0360909,86658.0,86657.0,0.011539]
[1741416870499,0.0360909,86658.0,86657.0,0.088739]
[1741416872105,0.0360909,86658.0,86657.0,0.097739]
[1741416873088,0.05419061,86658.0,86657.0,0.097739]
[1741416875725,0.05419061,86658.0,86657.0,0.093739]
[1741416876271,0.05419061,86658.0,86657.0,0.097739]
[1741416876669,0.05419061,86658.0,86657.0,0.092739]
[1741416877140,0.05419061,86658.0,86657.0,0.097739]
[1741416878458,0.01809971,86658.0,86657.0,0.097739]
[1741416885638,0.01826931,86658.0,86657.0,0.097739]
[1741416888520,0.01826931,86658.0,86657.0,0.009]
[1741416888728,0.06581178,86658.0,86657.0,0.009]
[1741416889121,0.04771207,86658.0,86657.0,0.009]
[1741416889363,0.04771207,86658.0,86657.0,0.004]
[1741416890522,0.242333,86657.0,86656.0,0.0003392]
[1741416890719,0.27833647,86657.0,86656.0,0.0003392]
[1741416891727,0.29643693,86657.0,86656.0,0.0003392]
[1741416892585,0.29643693,86657.0,86656.0,0.0013392]
[1741416893014,0.05410393,86657.0,86656.0,0.0013392]
[1741416893220,0.03600347,86657.0,86656.0,0.0013392]
[1741416893409,0.03600347,86657.0,86656.0,0.0033392]
[1741416893632,0.04754247,86657.0,86656.0,0.0033392]
[1741416893832,0.04754247,86657.0,86656.0,0.0013392]
[1741416894039,0.04754247,86657.0,86656.0,0.0003392]
[1741416894255,0.03600347,86657.0,86656.0,0.0013392]
[1741416894463,0.03600347,86657.0,86656.0,0.0929782]
[1741416894677,0.0001696,86658.0,86657.0,0.242333]
[1741416895817,0.0182687,86658.0,86657.0,0.242333]
[1741416896124,0.0182687,86658.0,86657.0,0.245333]
[1741416897800,0.0182687,86658.0,86657.0,0.242333]
[1741416898207,0.0182687,86658.0,86657.0,0.251333]
[1741416900102,0.0182687,86658.0,86657.0,0.6991324]
[1741416900303,0.0182687,86658.0,86657.0,0.72424479]
[1741416900482,0.0182687,86658.0,86657.0,0.6991324]
[1741416900865,0.0182687,86658.0,86657.0,0.73867325]
[1741416901069,0.0182687,86658.0,86657.0,0.72967325]
[1741416901431,0.0182687,86658.0,86657.0,0.76898013]
[1741416901801,0.0182687,86658.0,86657.0,0.74398013]
[1741416901927,0.0182687,86658.0,86657.0,0.7041324]
[1741416902205,0.0182687,86658.0,86657.0,0.6971324]
[1741416902414,0.0182687,86658.0,86657.0,0.7041324]
[1741416902826,0.0001696,86658.0,86657.0,0.6901324]
[1741416903269,0.0001696,86658.0,86657.0,0.6971324]
[1741416903640,0.0001696,86658.0,86657.0,0.6901324]
[1741416904042,0.0001696,86658.0,86657.0,0.7041324]
[1741416904487,0.0001696,86658.0,86657.0,0.6971324]
[1741416905067,0.0001696,86658.0,86657.0,0.71167325]
[1741416905543,0.0001696,86658.0,86657.0,0.71867325]
[1741416906063,0.0001696,86658.0,86657.0,1.25267325]
[1741416906259,0.0001696,86658.0,86657.0,1.24567325]
[1741416906700,0.0001696,86658.0,86657.0,1.25267325]
[1741416906932,0.0001696,86658.0,86657.0,1.27767325]
[1741416907166,0.01809625,86663.0,86657.0,1.27767325]
[1741416907167,5e-08,86665.0,86664.0,0.025]
[1741416907366,5e-08,86665.0,86664.0,0.28951234]
[1741416907576,5e-08,86665.0,86664.0,0.28835885]
[1741416908679,5e-08,86665.0,86664.0,0.29535885]
[1741416909619,5e-08,86665.0,86664.0,0.30235885]
[1741416910901,5e-08,86665.0,86664.0,1.15805825]
[1741416912398,5e-08,86665.0,86664.0,1.18305825]
[1741416912789,0.18736669,86708.0,86701.0,0.011533]
[1741416912993,0.230668,86705.0,86698.0,0.10936]
[1741416913545,0.01809186,86704.0,86698.0,0.10936]
[1741416913952,0.01191987,86704.0,86698.0,0.120894]
[1741416914826,0.00038687,86704.0,86703.0,0.011533]
[1741416915215,0.00038687,86704.0,86703.0,0.09088624]
[1741416915409,0.00038687,86704.0,86703.0,0.13838624]
[1741416915624,0.00038687,86704.0,86703.0,0.13884737]
[1741416915930,0.00028921,86704.0,86703.0,0.13838624]
[1741416916337,0.00028921,86704.0,86691.0,0.230704]
[1741416916338,0.230672,86703.0,86691.0,0.230704]
[1741416916537,0.230672,86703.0,86697.0,0.230688]
[1741416917012,0.00526079,86702.0,86697.0,0.230688]
[1741416917261,0.230672,86703.0,86697.0,0.230688]
[1741416917463,0.230672,86703.0,86696.0,0.10928]
[1741416917666,0.242205,86703.0,86696.0,0.10928]
[1741416917864,0.011533,86701.0,86696.0,0.10928]
[1741416918268,0.02962415,86702.0,86697.0,0.002]
[1741416918467,0.00526079,86700.0,86697.0,0.013534]
[1741416918672,0.01809115,86702.0,86697.0,0.242221]
[1741416918867,0.00526079,86699.0,86697.0,0.242221]
[1741416919130,0.01809115,86702.0,86697.0,0.011534]
[1741416919429,0.02962415,86702.0,86696.0,0.120814]
[1741416919620,0.00526079,86701.0,86697.0,0.002]
[1741416920155,0.00526079,86701.0,86698.0,0.011534]
[1741416920791,0.00526079,86701.0,86699.0,0.230683]
[1741416921023,0.01826095,86702.0,86699.0,0.242217]
[1741416921163,0.01826095,86702.0,86699.0,0.011534]
[1741416921364,0.00533592,86701.0,86699.0,0.242216]
[1741416921608,0.00533592,86701.0,86697.0,0.237686]
[1741416921609,0.00533592,86701.0,86697.0,0.004]
[1741416921804,0.00533592,86701.0,86698.0,0.003]
[1741416922177,0.00533592,86701.0,86698.0,0.011534]
[1741416922601,0.00533592,86701.0,86699.0,0.003]
[1741416922812,0.00533592,86701.0,86698.0,0.015534]
[1741416923027,0.00533592,86701.0,86698.0,0.004]
[1741416923232,0.242217,86699.0,86698.0,0.004]
[1741416923611,0.24223,86694.0,86693.0,0.10932]
[1741416924229,0.230709,86689.0,86684.0,0.0475]
[1741416924435,0.011535,86689.0,86688.0,0.10932]
[1741416924698,0.242244,86689.0,86688.0,0.10932]
[1741416925019,0.24757992,86689.0,86688.0,0.10932]
[1741416925467,0.27279095,86689.0,86688.0,0.10932]
[1741416926158,0.27279095,86689.0,86688.0,0.11432]
[1741416926790,0.29088411,86689.0,86688.0,0.11432]
[1741416927083,0.29088411,86689.0,86688.0,0.11732]
[1741416927370,0.29088411,86689.0,86688.0,0.11232]
[1741416927816,0.29088411,86689.0,86688.0,0.11432]
[1741416929385,0.29088411,86689.0,86688.0,0.005]
[1741416930626,0.27279095,86689.0,86688.0,0.005]
[1741416932488,0.30871659,86689.0,86688.0,0.005]
[1741416932621,0.30871659,86689.0,86688.0,0.0053394]
[1741416933055,0.38391659,86689.0,86688.0,0.0053394]
[1741416935261,0.30871659,86689.0,86688.0,0.0053394]
[1741416940722,0.3268109,86689.0,86688.0,0.0053394]
[1741416943853,0.30871659,86689.0,86688.0,0.0053394]
[1741416945054,0.30871659,86689.0,86688.0,0.0003394]
[1741416945455,0.30971659,86689.0,86688.0,0.0003394]
[1741416945859,0.30871659,86689.0,86688.0,0.0003394]
[1741416946180,0.30971659,86689.0,86688.0,0.0003394]
[1741416946594,0.3278117,86689.0,86688.0,0.0003394]
[1741416946805,0.3268117,86689.0,86688.0,0.0003394]
[1741416947002,0.3278117,86689.0,86688.0,0.0003394]
[1741416948636,0.3268117,86689.0,86688.0,0.0003394]
[1741416949261,0.3278117,86689.0,86688.0,0.0003394]
[1741416958233,0.3162767,86689.0,86688.0,0.1255394]
[1741416958435,0.0855677,86689.0,86688.0,0.1255394]
[1741416958690,0.0971027,86689.0,86688.0,0.1255394]
[1741416959251,0.0961027,86689.0,86688.0,0.1255394]
[1741416959455,0.0961027,86689.0,86688.0,0.1275394]
[1741416962341,0.230708,86690.0,86688.0,0.1275394]
[1741416962342,0.1228506,86690.0,86688.0,0.0023394]
[1741416962547,0.230699,86693.0,86688.0,0.0023394]
[1741416962548,0.230704,86691.0,86688.0,0.0023394]
[1741416962748,0.0296301,86689.0,86688.0,0.0023394]
[1741416962868,0.06561896,86689.0,86688.0,0.0023394]
[1741416963071,0.04752386,86689.0,86688.0,0.0023394]
[1741416963271,0.04752386,86689.0,86688.0,0.0003394]
[1741416964288,0.242286,86674.0,86666.0,0.19358]
[1741416964671,0.242286,86674.0,86666.0,0.0455]
[1741416965408,0.011538,86667.0,86666.0,0.0455]
[1741416965619,0.242306,86667.0,86666.0,0.0455]
[1741416966827,0.242306,86667.0,86666.0,0.0485]
[1741416967269,0.242306,86667.0,86666.0,0.0525]
[1741416967489,0.26040342,86667.0,86666.0,0.0525]
[1741416967692,0.26040342,86667.0,86666.0,0.007]
[1741416967893,0.29641065,86667.0,86666.0,0.007]
[1741416969092,0.242333,86657.0,86656.0,0.0003392]
[1741416969275,0.01809742,86667.0,86661.0,0.230784]
[1741416969489,0.001,86667.0,86666.0,0.002]
[1741416969906,0.001,86667.0,86665.0,0.0774]
[1741416970150,0.01192357,86674.0,86666.0,0.242309]
[1741416970349,0.01192357,86674.0,86667.0,0.120738]
[1741416970568,0.00038657,86674.0,86669.0,0.010538]
[1741416970787,0.0180976,86673.0,86670.0,0.23076]
[1741416970943,0.0180976,86673.0,86672.0,0.011537]
[1741416971345,0.0180976,86673.0,86669.0,0.010538]
[1741416971562,0.0180976,86673.0,86670.0,0.011538]
[1741416972013,0.0180976,86673.0,86672.0,0.0486]
[1741416972169,0.0180976,86673.0,86672.0,0.060137]
[1741416972604,0.05408036,86673.0,86672.0,0.060137]
[1741416972859,0.00138657,86674.0,86673.0,0.242289]
[1741416973141,0.00138657,86674.0,86673.0,0.318789]
[1741416973363,0.00038657,86674.0,86673.0,0.318789]
[1741416973609,0.00038657,86674.0,86673.0,0.317789]
[1741416974055,0.03636837,86674.0,86673.0,0.317789]
[1741416974303,0.03636837,86674.0,86673.0,0.322789]
[1741416974515,0.03636837,86674.0,86673.0,0.328789]
[1741416976825,0.00038657,86674.0,86673.0,0.328789]
[1741416977196,0.01848178,86674.0,86673.0,0.328789]
[1741416979661,0.05448396,86674.0,86673.0,0.328789]
[1741416979855,0.01848178,86674.0,86673.0,0.328789]
[1741416980149,0.05448396,86674.0,86673.0,0.328789]
[1741416980545,0.05448396,86674.0,86673.0,0.0983764]
[1741416980769,0.05465366,86674.0,86673.0,0.0983764]
[1741416980964,0.05465366,86674.0,86673.0,0.0878394]
[1741416981106,0.06619066,86674.0,86673.0,0.0113394]
[1741416981325,0.06619066,86674.0,86673.0,0.1205394]
[1741416981531,0.06619066,86674.0,86673.0,0.1095394]
[1741416982033,0.06619066,86674.0,86673.0,0.1135394]
[1741416982801,0.05465366,86674.0,86673.0,0.1135394]
[1741416982977,0.05465366,86674.0,86673.0,0.1185394]
[1741416983344,0.05465366,86674.0,86673.0,0.1145394]
[1741416983549,0.29693966,86674.0,86673.0,0.0023394]
[1741416983756,0.29693966,86674.0,86673.0,0.0053394]